bitfinex/quotes_ETHUSD_20230105
["timestamp","ask_amount","ask_price","bid_price","bid_amount"]
[1672910648383,5.48536448,1250.4,1250.3,60.40948625]
[1672910648957,7.28497252,1250.4,1250.3,60.40948625]
[1672910649169,5.48536448,1250.4,1250.3,60.40948625]
[1672910649624,7.28499201,1250.4,1250.3,60.40948625]
[1672910649833,7.28499225,1250.4,1250.3,60.40948625]
[1672910650125,9.08464172,1250.4,1250.3,93.42422736]
[1672910650519,9.08464172,1250.4,1250.3,95.40949875]
[1672910650659,9.08464172,1250.4,1250.3,93.42422736]
[1672910650860,9.08464172,1250.4,1250.3,95.40949757]
[1672910652172,9.08464172,1250.4,1250.3,93.42422736]
[1672910652541,9.08464172,1250.4,1250.3,95.40949102]
[1672910653688,9.08464172,1250.4,1250.3,95.21939102]
[1672910655006,11.48451189,1250.4,1250.3,95.21939102]
[1672910655180,9.08464172,1250.4,1250.3,95.21939102]
[1672910655388,7.28499225,1250.4,1250.3,95.21939102]
[1672910655605,7.28499225,1250.4,1250.3,98.67571761]
[1672910658953,7.28499225,1250.4,1250.3,99.87492757]
[1672910659417,7.28499225,1250.4,1250.3,113.08592757]
[1672910660145,7.28499225,1250.4,1250.3,78.08592757]
[1672910660474,7.28499225,1250.4,1250.3,113.08592757]
[1672910661230,7.28499225,1250.4,1250.3,114.88458935]
[1672910661377,7.28499225,1250.4,1250.3,113.08592757]
[1672910663502,7.25441407,1250.4,1250.3,113.08592757]
[1672910667529,7.25441407,1250.4,1250.3,111.88671761]
[1672910668025,7.25441407,1250.4,1250.3,112.72200567]
[1672910668275,7.25441407,1250.4,1250.3,113.92121563]
[1672910668488,7.25441407,1250.4,1250.3,114.21181563]
[1672910668679,7.25441407,1250.4,1250.3,113.37652757]
[1672910668885,7.25441407,1250.4,1250.3,113.08592757]
[1672910676681,7.25441407,1250.4,1250.3,111.88671761]
[1672910680270,7.25441407,1250.4,1250.3,90.67763761]
[1672910680466,7.25441407,1250.4,1250.3,80.72299355]
[1672910683620,7.25441407,1250.4,1250.3,72.72491355]
[1672910684057,7.25441407,1250.4,1250.3,80.72299355]
[1672910685475,9.05326734,1250.4,1250.3,80.72054402]
[1672910686055,7.25441407,1250.4,1250.3,80.72054402]
[1672910687803,9.05326734,1250.4,1250.3,80.72054402]
[1672910691437,9.05326734,1250.4,1250.3,88.71862402]
[1672910693532,7.25441407,1250.4,1250.3,89.87070615]
[1672910700574,9.44605765,1250.4,1250.3,89.87070615]
[1672910701377,7.25441407,1250.4,1250.3,89.87070615]
[1672910708609,9.05326734,1250.4,1250.3,81.87262615]
[1672910708823,9.05326734,1250.4,1250.3,89.87070615]
[1672910709422,9.05326734,1250.4,1250.3,80.72054402]
[1672910709676,9.65428424,1250.4,1250.3,26.01258628]
[1672910710256,11.45245989,1250.4,1250.3,26.01258628]
[1672910711534,12.65345615,1250.4,1250.3,26.01258628]
[1672910712836,15.52383739,1250.4,1250.3,26.01258628]
[1672910713492,11.92298108,1250.4,1250.3,26.01258628]
[1672910713630,14.32344023,1250.4,1250.3,26.01258628]
[1672910713832,12.52466548,1250.4,1250.3,26.01258628]
[1672910714348,15.52383739,1250.4,1250.3,26.01258628]
[1672910719080,23.51945261,1250.4,1250.3,26.01258628]
[1672910719335,23.51945625,1250.4,1250.3,26.01258628]
[1672910719511,23.51946703,1250.4,1250.3,26.01258628]
[1672910719717,15.52202703,1250.4,1250.3,26.01258628]
[1672910719912,8.32361296,1250.4,1250.3,26.01258628]
[1672910720752,5.45323172,1250.4,1250.3,61.01258628]
[1672910722778,2.45405981,1250.4,1250.3,61.01258628]
[1672910722981,5.39723172,1250.4,1250.3,61.01258628]
[1672910723206,2.45405981,1250.4,1250.3,61.01258628]
[1672910723545,2.39805981,1250.4,1250.3,61.01258628]
[1672910723850,5.39723172,1250.4,1250.3,61.01258628]
[1672910724047,2.45405981,1250.4,1250.3,61.01258628]
[1672910724276,2.39805981,1250.4,1250.3,61.01258628]
[1672910725816,5.39723172,1250.4,1250.3,61.01258628]
[1672910726023,2.45405981,1250.4,1250.3,61.01258628]
[1672910726243,5.39723172,1250.4,1250.3,61.01258628]
[1672910726551,5.45323172,1250.4,1250.3,61.01258628]
[1672910726970,2.45405981,1250.4,1250.3,69.01066628]
[1672910727183,2.39805981,1250.4,1250.3,69.01066628]
[1672910730790,2.39805981,1250.4,1250.3,69.00858181]
[1672910731102,5.39723172,1250.4,1250.3,69.00858181]
[1672910731278,5.45323172,1250.4,1250.3,61.01050181]
[1672910735934,2.45405981,1250.4,1250.3,61.01050181]
[1672910736184,5.39723172,1250.4,1250.3,61.01050181]
[1672910736397,5.45323172,1250.4,1250.3,61.01050181]
[1672910737512,3.05517191,1250.4,1250.3,61.01050181]
[1672910737883,2.99917191,1250.4,1250.3,61.01050181]
[1672910738885,4.47010223,1250.4,1250.3,61.01050181]
[1672910739256,32.56418535,1250.4,1250.3,0.05596378]
[1672910739421,33.80212092,1250.4,1250.3,0.002]
[1672910739638,33.80412092,1250.4,1249.9,40.34596378]
[1672910739845,31.69225195,1250.3,1250.2,17.98914951]
[1672910740163,31.98863724,1250.3,1250.2,18.04511329]
[1672910745147,23.38563803,1250.3,1250.2,18.04511329]
[1672910745625,15.38755803,1250.3,1250.2,18.04511329]
[1672910745836,22.78533803,1250.3,1250.2,18.04511329]
[1672910748034,25.17945033,1250.3,1250.2,18.04511329]
[1672910748192,22.78533803,1250.3,1250.2,18.04511329]
[1672910750033,25.17960481,1250.3,1250.2,18.04511329]
[1672910750401,17.18152481,1250.3,1250.2,18.04511329]
[1672910750615,14.78725803,1250.3,1250.2,18.04511329]
[1672910751046,17.18142085,1250.3,1250.2,18.04511329]
[1672910751810,9.18334085,1250.3,1250.2,18.04511329]
[1672910753086,9.18334085,1250.3,1250.2,4.04511329]
[1672910753231,9.18334085,1250.3,1250.2,3.98914951]
[1672910755180,17.18142085,1250.3,1250.2,3.98914951]
[1672910757331,17.18142085,1250.3,1250.2,17.98914951]
[1672910757542,17.18142085,1250.3,1250.2,18.04511329]
[1672910760310,14.78725803,1250.3,1250.2,18.04511329]
[1672910761699,17.18154112,1250.3,1250.2,18.04511329]
[1672910769417,17.18154112,1250.3,1250.2,26.06960729]
[1672910770158,14.78725803,1250.3,1250.2,26.06960729]
[1672910776160,11.79446529,1250.3,1250.2,26.06960729]
[1672910776368,11.79446529,1250.3,1250.2,26.06562652]
[1672910776612,0.056,1250.3,1250.2,26.06562652]
[1672910776833,2.99778855,1250.3,1250.2,26.06562652]
[1672910778622,31.66117195,1250.4,1250.2,26.06562652]
[1672910778775,31.65117195,1250.4,1250.3,3.98914951]
[1672910779418,23.65371195,1250.4,1250.3,3.98914951]
[1672910780401,28.05344,1250.4,1250.3,3.98914951]
[1672910782381,36.05088,1250.4,1250.3,3.98914951]
[1672910782596,48.2329906,1250.4,1250.3,3.98914951]
[1672910787810,40.2355506,1250.4,1250.3,3.98914951]
[1672910794010,48.2329906,1250.4,1250.3,3.98914951]
[1672910796974,48.84989704,1250.4,1250.3,3.98914951]
[1672910797183,44.64852,1250.4,1250.3,3.98914951]
[1672910798378,48.84991293,1250.4,1250.3,3.98914951]
[1672910800058,48.84991293,1250.4,1250.3,3.98632988]
[1672910800243,48.24971293,1250.4,1250.3,3.98632988]
[1672910803409,48.24971293,1250.4,1250.2,22.08045778]
[1672910803574,28.19563293,1250.3,1250.2,26.06960729]
[1672910803788,20.25355293,1250.3,1250.2,26.06960729]
[1672910808203,16.05216,1250.3,1250.2,26.06960729]
[1672910808524,20.87825929,1250.3,1250.2,26.06960729]
[1672910809155,25.07965222,1250.3,1250.2,26.06960729]
[1672910812424,20.87825929,1250.3,1250.2,26.06960729]
[1672910812590,25.07965222,1250.3,1250.2,26.06960729]
[1672910820402,9.08349222,1250.3,1250.2,26.06960729]
[1672910820613,25.07965222,1250.3,1250.2,26.06960729]
[1672910821564,25.07965222,1250.3,1250.2,12.06960729]
[1672910823203,25.07965222,1250.3,1250.2,26.06960729]
[1672910824649,33.07773222,1250.3,1250.2,26.06960729]
[1672910828848,25.07965222,1250.3,1250.2,26.06960729]
[1672910833967,33.07773222,1250.3,1250.2,26.06960729]
[1672910840561,25.07965222,1250.3,1250.2,26.06960729]
[1672910840986,33.07773222,1250.3,1250.2,26.06960729]
[1672910841617,33.07773222,1250.3,1250.2,26.06743202]
[1672910841888,33.07773222,1250.3,1250.2,26.06943202]
[1672910845723,25.07965222,1250.3,1250.2,26.06943202]
[1672910847156,33.07773222,1250.3,1250.2,26.06943202]
[1672910847674,28.87633929,1250.3,1250.2,26.06943202]
[1672910847850,33.8127023,1250.3,1250.2,26.06943202]
[1672910848412,33.8127023,1250.3,1250.2,22.08028251]
[1672910849727,28.87633929,1250.3,1250.2,22.08028251]
[1672910850137,33.8127023,1250.3,1250.2,22.08028251]
[1672910851774,28.87633929,1250.3,1250.2,22.08028251]
[1672910853103,33.8127023,1250.3,1250.2,22.08028251]
[1672910854925,25.8146223,1250.3,1250.2,22.08028251]
[1672910855244,17.8165423,1250.3,1250.2,22.08028251]
[1672910855396,25.8146223,1250.3,1250.2,22.08028251]
[1672910855603,33.8127023,1250.3,1250.2,22.08028251]
[1672910856137,28.87633929,1250.3,1250.2,22.08028251]
[1672910856382,33.07698554,1250.3,1250.2,22.08028251]
[1672910856599,33.8127023,1250.3,1250.2,22.08028251]
[1672910866430,33.8127023,1250.3,1250.2,22.07707842]
[1672910877937,37.3127023,1250.3,1250.2,22.07707842]
[1672910878107,32.37633929,1250.3,1250.2,8.07707842]
[1672910878323,32.37633929,1250.3,1250.2,0.071]
[1672910878533,3.5,1250.2,1250.0,14.066]
[1672910878742,31.99744,1250.1,1250.0,14.066]
[1672910878993,32.06344,1250.1,1250.0,14.066]
[1672910879312,37.02455291,1250.1,1250.0,14.066]
[1672910879518,57.02455291,1250.1,1250.0,14.066]
[1672910879844,57.02455291,1250.1,1250.0,0.066]
[1672910879991,57.02455291,1250.1,1249.8,38.8011]
[1672910879992,61.8506522,1250.1,1249.8,29.8583]
[1672910880198,3.59740982,1249.9,1249.8,33.84744951]
[1672910880467,19.59868982,1249.9,1249.8,26.05514951]
[1672910880780,8.06664,1249.9,1249.8,26.05514951]
[1672910880993,11.06458933,1249.9,1249.8,26.05514951]
[1672910881166,3.06394933,1249.9,1249.8,26.05514951]
[1672910881375,2.99794933,1249.9,1249.8,26.05514951]
[1672910882723,10.99858933,1249.9,1249.8,26.05514951]
[1672910883091,11.06458933,1249.9,1249.8,26.05514951]
[1672910883261,24.06792,1249.9,1249.8,18.05514951]
[1672910883470,27.66532982,1249.9,1249.8,18.05514951]
[1672910883709,24.06792,1249.9,1249.8,18.05514951]
[1672910883917,16.06728,1249.9,1249.8,18.05514951]
[1672910884799,19.06456573,1249.9,1249.8,18.05514951]
[1672910885227,16.06728,1249.9,1249.8,18.05514951]
[1672910885585,19.06375162,1249.9,1249.8,18.05514951]
[1672910885800,11.06311162,1249.9,1249.8,18.05514951]
[1672910888665,19.06375162,1249.9,1249.8,18.05514951]
[1672910888839,11.06311162,1249.9,1249.8,18.05514951]
[1672910892156,24.06792,1249.9,1249.8,18.05514951]
[1672910892366,21.00911426,1249.9,1249.8,18.05514951]
[1672910893620,9.41106444,1249.9,1249.8,18.05514951]
[1672910893836,3.05914119,1249.9,1249.8,18.05514951]
[1672910894007,2.99314119,1249.9,1249.8,18.05514951]
[1672910899671,2.99314119,1249.9,1249.8,26.05642951]
[1672910900138,5.38735707,1249.9,1249.8,34.05770951]
[1672910900351,5.45335707,1249.9,1249.8,20.05770951]
[1672910900573,5.45335707,1249.9,1249.8,12.05642951]
[1672910900722,5.45335707,1249.9,1249.8,4.05514951]
[1672910901053,5.45335707,1249.9,1249.8,3.98914951]
[1672910901460,5.45335707,1249.9,1249.8,17.98914951]
[1672910901669,5.45335707,1249.9,1249.8,20.76210231]
[1672910901937,5.45335707,1249.9,1249.8,36.76466231]
[1672910902460,5.45335707,1249.9,1249.8,28.76338231]
[1672910905151,4.25635045,1249.9,1249.8,28.76338231]
[1672910905365,1.79613457,1249.9,1249.8,28.76338231]
[1672910905604,4.19035045,1249.9,1249.8,28.76338231]
[1672910907089,4.19035045,1249.9,1249.8,36.76466231]
[1672910908726,2.39421588,1249.9,1249.8,36.76466231]
[1672910909345,2.39421588,1249.9,1249.8,28.76338231]
[1672910909600,5.38735707,1249.9,1249.8,28.76338231]
[1672910909805,5.45335707,1249.9,1249.8,28.76338231]
[1672910910928,5.45335707,1249.9,1249.8,20.76210231]
[1672910911137,3.05914119,1249.9,1249.8,18.05514951]
[1672910911396,2.99314119,1249.9,1249.8,18.05514951]
[1672910911708,26.99506119,1249.9,1249.8,18.05514951]
[1672910911872,24.06792,1249.9,1249.8,18.05514951]
[1672910912082,31.2318708,1249.9,1249.8,18.05514951]
[1672910912316,23.2312308,1249.9,1249.8,18.05514951]
[1672910912527,19.63382098,1249.9,1249.8,18.05514951]
[1672910913385,6.62774727,1249.9,1249.8,18.05514951]
[1672910913602,0.066,1249.9,1249.8,18.05514951]
[1672910913772,20.26448982,1250.0,1249.8,18.05514951]
[1672910913984,28.26508982,1250.0,1249.8,18.05514951]
[1672910914647,28.26204391,1250.0,1249.8,18.05514951]
[1672910915791,3.59740982,1249.9,1249.8,18.05514951]
[1672910916545,11.59804982,1249.9,1249.8,18.05514951]
[1672910916704,14.49025821,1249.9,1249.8,18.05514951]
[1672910917377,3.66340982,1249.9,1249.8,18.05514951]
[1672910917534,3.59740982,1249.9,1249.8,18.05514951]
[1672910920914,11.66044391,1250.0,1249.8,18.05514951]
[1672910925263,19.66078391,1250.0,1249.8,18.05514951]
[1672910926518,3.59740982,1249.9,1249.8,18.05514951]
[1672910927176,11.59804982,1249.9,1249.8,18.05514951]
[1672910927344,11.66404982,1249.9,1249.8,18.05514951]
[1672910933178,3.66340982,1249.9,1249.8,18.05514951]
[1672910933390,3.59740982,1249.9,1249.8,18.05514951]
[1672910933759,11.66350982,1250.0,1249.8,18.05514951]
[1672910934010,11.66350982,1250.0,1249.9,3.98914951]
[1672910934230,3.66340982,1250.0,1249.9,3.98914951]
[1672910934446,3.59740982,1250.0,1249.9,3.98914951]
[1672910935183,3.59676665,1250.0,1249.9,3.98914951]
[1672910935393,3.59682272,1250.0,1249.9,3.98914951]
[1672910937223,11.59682272,1250.0,1249.9,3.98914951]
[1672910937495,3.66282272,1250.0,1249.9,3.98914951]
[1672910937706,11.59682272,1250.0,1249.9,3.98914951]
[1672910938012,11.71282272,1250.0,1249.9,3.98914951]
[1672910938174,11.66282272,1250.0,1249.9,3.98914951]
[1672910938924,11.66282272,1250.0,1249.9,3.9866476]
[1672910939851,3.66282272,1250.0,1249.9,3.9866476]
[1672910940269,3.59682272,1250.0,1249.9,3.9866476]
[1672910943117,3.59727591,1250.0,1249.9,3.9866476]
[1672910945771,59.36366813,1250.1,1249.9,3.9866476]
[1672910946191,0.05,1250.0,1249.9,3.9866476]
[1672910946403,59.36366813,1250.1,1249.9,3.9866476]
[1672910946615,3.59826999,1250.0,1249.9,3.9866476]
[1672910947438,67.36376813,1250.1,1249.9,3.9866476]
[1672910947825,67.36376813,1250.1,1250.0,3.98914951]
[1672910947976,48.86276813,1250.1,1250.0,3.98914951]
[1672910948509,44.66579,1250.1,1250.0,3.98914951]
[1672910948722,48.8645405,1250.1,1250.0,3.98914951]
[1672910949279,44.66579,1250.1,1250.0,3.98914951]
[1672910950454,44.06539,1250.1,1250.0,3.98914951]
[1672910950755,49.02807029,1250.1,1250.0,3.98914951]
[1672910954750,53.22750967,1250.1,1250.0,3.98914951]
[1672910956784,49.02807029,1250.1,1250.0,3.98914951]
[1672910959900,49.02807029,1250.1,1250.0,3.98527211]
[1672910964776,53.2268521,1250.1,1250.0,3.98527211]
[1672910969353,49.02807029,1250.1,1250.0,3.98527211]
[1672910971619,53.9891832,1250.1,1250.0,3.98527211]
[1672910974928,49.02807029,1250.1,1250.0,3.98527211]
[1672910975771,53.9891832,1250.1,1250.0,3.98527211]
[1672910975965,49.02807029,1250.1,1250.0,3.98527211]
[1672910978298,53.9891832,1250.1,1250.0,3.98527211]
[1672910980600,45.9892232,1250.1,1250.0,3.98527211]
[1672910983808,29.9897932,1250.1,1250.0,3.98527211]
[1672910984380,29.9897932,1250.1,1250.0,3.98128686]
[1672910994333,29.98683278,1250.1,1250.0,3.98128686]
[1672910999427,33.48683278,1250.1,1249.9,0.066]
[1672910999651,0.05,1250.0,1249.8,22.1805]
[1672910999984,4.19707193,1249.9,1249.8,26.16964951]
[1672911000192,4.26307193,1250.0,1249.8,18.05514951]
[1672911000413,4.19707193,1250.0,1249.8,18.05514951]
[1672911002680,4.19707193,1249.9,1249.8,18.05514951]
[1672911002908,4.26307193,1250.0,1249.8,18.05514951]
[1672911003082,4.19707193,1249.9,1249.8,18.05514951]
[1672911003972,3.59608546,1249.9,1249.8,18.05514951]
[1672911005675,5.47091537,1250.0,1249.8,18.05514951]
[1672911005836,3.59566203,1249.9,1249.8,18.05514951]
[1672911006668,5.47091537,1250.0,1249.8,18.05514951]
[1672911006878,3.59539899,1249.9,1249.8,18.05514951]
[1672911008769,3.59539899,1249.9,1249.8,21.41994289]
[1672911011453,3.66139899,1250.0,1249.8,21.41994289]
[1672911011640,2.99679668,1249.9,1249.8,17.43079338]
[1672911011857,3.66139899,1250.0,1249.8,17.43079338]
[1672911012043,3.59539899,1250.0,1249.8,17.43079338]
[1672911013559,2.99660275,1249.9,1249.8,17.43079338]
[1672911013713,2.99660275,1249.9,1249.8,21.41994289]
[1672911016880,2.99660275,1249.9,1249.8,21.64994289]
[1672911016881,1.79814419,1249.9,1249.8,21.64994289]
[1672911018961,1.79814419,1249.9,1249.8,11.14994289]
[1672911021529,1.79814419,1249.9,1249.8,25.14994289]
[1672911022897,4.26149078,1250.0,1249.8,25.14994289]
[1672911023108,4.19549078,1250.0,1249.9,11.98914951]
[1672911023360,4.19549078,1250.0,1249.9,15.3701438]
[1672911027785,1.79814419,1250.0,1249.9,15.3701438]
[1672911033344,4.46680463,1250.0,1249.9,15.3701438]
[1672911034142,2.06945804,1250.0,1249.9,15.3701438]
[1672911040194,4.46680463,1250.0,1249.9,15.3701438]
[1672911043957,4.46680463,1250.0,1249.9,15.36632858]
[1672911044714,2.66866044,1250.0,1249.9,15.36632858]
[1672911045024,5.66526319,1250.0,1249.9,15.36632858]
[1672911045241,5.73126319,1250.0,1249.9,15.36632858]
[1672911046014,3.3339166,1250.0,1249.9,12.05133429]
[1672911046293,3.2679166,1250.0,1249.9,12.05133429]
[1672911046998,3.26618876,1250.0,1249.9,12.05133429]
[1672911047210,0.27131385,1250.0,1249.9,12.05133429]
[1672911048442,3.86671284,1250.0,1249.9,12.05133429]
[1672911049299,4.25998412,1250.0,1249.9,12.05133429]
[1672911055955,4.26198412,1250.0,1249.9,12.04933429]
[1672911056129,4.25998412,1250.0,1249.9,12.05133429]
[1672911057382,4.34236248,1250.0,1249.9,12.05133429]
[1672911063154,4.34436248,1250.0,1249.9,12.04933429]
[1672911063419,4.34436248,1250.0,1249.9,12.05133429]
[1672911063420,4.34236248,1250.0,1249.9,12.05133429]
[1672911064261,4.34236248,1250.0,1249.9,12.04761615]
[1672911071153,4.34436248,1250.0,1249.9,12.04561615]
[1672911071363,4.34236248,1250.0,1249.9,12.04761615]
[1672911072246,7.02803542,1250.0,1249.9,0.066]
[1672911072434,7.69443542,1250.0,1249.8,14.066]
[1672911072664,7.69443542,1250.0,1249.8,18.05514951]
[1672911072665,7.09034562,1250.0,1249.8,18.05514951]
[1672911072846,6.48994562,1250.0,1249.8,18.05514951]
[1672911076315,2.99416276,1249.9,1249.8,18.05514951]
[1672911076845,6.48994562,1250.0,1249.8,18.05514951]
[1672911078152,2.99412466,1249.9,1249.8,18.05514951]
[1672911078311,6.48994562,1250.0,1249.8,18.05514951]
[1672911078520,2.99418185,1249.9,1249.8,18.05514951]
[1672911078767,6.48994562,1250.0,1249.8,18.05514951]
[1672911081093,3.59298213,1249.9,1249.8,18.05514951]
[1672911081467,6.48994562,1250.0,1249.8,18.05514951]
[1672911082346,3.59298213,1249.9,1249.8,18.05514951]
[1672911082557,6.48994562,1250.0,1249.8,18.05514951]
[1672911082941,3.59298213,1249.9,1249.8,18.05514951]
[1672911084412,4.40594562,1250.0,1249.8,18.05514951]
[1672911084623,4.33994562,1250.0,1249.9,3.98914951]
[1672911084832,4.94403542,1250.0,1249.9,3.98914951]
[1672911085086,4.94403542,1250.0,1249.9,3.98692354]
[1672911085468,0.74696349,1250.0,1249.9,3.98692354]
[1672911086188,4.94403542,1250.0,1249.9,3.98692354]
[1672911088953,0.35369221,1250.0,1249.9,3.98692354]
[1672911089217,3.95017144,1250.0,1249.9,3.98692354]
[1672911091307,3.946252,1250.0,1249.9,3.98692354]
[1672911093361,3.946252,1250.0,1249.9,11.98692354]
[1672911093583,3.946252,1250.0,1249.9,12.05292354]
[1672911093584,3.3459723,1250.0,1249.9,12.05292354]
[1672911093798,3.3459723,1250.0,1249.9,15.13677514]
[1672911094255,5.74311476,1250.0,1249.9,15.13677514]
[1672911094473,5.80783285,1250.0,1249.9,15.13677514]
[1672911095044,5.45806008,1250.0,1249.9,15.13677514]
[1672911102056,5.45806008,1250.0,1249.9,19.84779106]
[1672911103827,5.45806008,1250.0,1249.9,15.1467232]
[1672911107047,3.06219953,1250.0,1249.9,15.1467232]
[1672911107261,2.99819953,1250.0,1249.9,15.1447232]
[1672911107482,2.99619953,1250.0,1249.9,15.1467232]
[1672911109461,2.99619953,1250.0,1249.9,12.0628716]
[1672911109462,10.99619953,1250.0,1249.9,12.0628716]
[1672911109704,16.066,1250.0,1249.9,12.0628716]
[1672911109922,0.066,1250.0,1249.9,12.0628716]
[1672911110108,3.59647923,1250.0,1249.9,12.0628716]
[1672911110287,11.59647923,1250.0,1249.9,12.0628716]
[1672911110498,11.66247923,1250.0,1249.9,12.0628716]
[1672911111338,19.66247923,1250.0,1249.9,12.0628716]
[1672911112408,27.66247923,1250.0,1249.9,12.0628716]
[1672911116005,19.66247923,1250.0,1249.9,12.06076377]
[1672911118485,3.66247923,1250.0,1249.9,14.66684015]
[1672911118843,5.38916891,1250.0,1249.9,14.89684015]
[1672911119031,5.45516891,1250.0,1249.9,14.89684015]
[1672911120807,5.45515773,1250.0,1249.9,14.89684015]
[1672911121016,3.05990588,1250.0,1249.9,14.89684015]
[1672911121233,2.99390588,1250.0,1249.9,14.89684015]
[1672911123135,5.38861472,1250.0,1249.9,14.89684015]
[1672911123314,5.45461472,1250.0,1249.9,14.89684015]
[1672911125109,5.45461472,1250.0,1249.9,22.89748015]
[1672911125957,5.45461472,1250.0,1249.9,30.89812015]
[1672911126172,2.46070884,1250.0,1249.9,30.89812015]
[1672911126402,5.45461472,1250.1,1249.9,39.3773194]
[1672911126613,4.25721818,1250.1,1250.0,18.21914951]
[1672911126800,4.19121818,1250.1,1250.0,48.44637883]
[1672911127015,4.19128524,1250.1,1250.0,48.92493808]
[1672911127226,1.7965764,1250.1,1250.0,56.92493808]
[1672911128183,4.19128524,1250.1,1250.0,56.92493808]
[1672911129198,4.19128524,1250.1,1250.0,48.92493808]
[1672911130468,1.7965764,1250.1,1250.0,48.92493808]
[1672911132634,4.19128524,1250.1,1250.0,48.92493808]
[1672911133161,4.19128524,1250.1,1250.0,24.92493808]
[1672911133325,4.19128524,1250.1,1250.0,18.53370876]
[1672911133535,4.19128524,1250.1,1250.0,34.53370876]
[1672911133753,5.38861472,1250.1,1250.0,18.05514951]
[1672911133941,5.45461472,1250.1,1250.0,18.05514951]
[1672911134601,3.05990588,1250.1,1250.0,18.05514951]
[1672911134821,2.99390588,1250.1,1250.0,18.05514951]
[1672911135769,14.05862839,1250.1,1250.0,18.05514951]
[1672911135931,6.12526839,1250.1,1250.0,18.05514951]
[1672911136352,3.05990588,1250.1,1250.0,18.05514951]
[1672911136566,2.99390588,1250.1,1250.0,18.05514951]
[1672911137134,2.99390588,1250.1,1250.0,18.05224566]
[1672911140040,15.99872,1250.1,1250.0,18.05224566]
[1672911140247,11.66183923,1250.1,1250.0,18.05224566]
[1672911142066,8.06536,1250.1,1250.0,18.05224566]
[1672911142406,3.05653907,1250.1,1250.0,18.05224566]
[1672911142557,2.99053907,1250.1,1250.0,18.05224566]
[1672911143086,27.65990923,1250.2,1250.0,18.05224566]
[1672911143296,32.89052835,1250.2,1250.1,11.98914951]
[1672911143507,32.89052835,1250.2,1250.1,12.05514951]
[1672911143919,24.89135835,1250.2,1250.1,12.05514951]
[1672911144758,32.89048835,1250.2,1250.1,12.05514951]
[1672911147864,24.89134835,1250.2,1250.1,12.05514951]
[1672911148307,16.89221835,1250.2,1250.1,12.05514951]
[1672911148690,24.89120835,1250.2,1250.1,12.05514951]
[1672911148903,32.89019835,1250.2,1250.1,12.05514951]
[1672911149093,34.67737794,1250.2,1250.1,12.05514951]
[1672911149299,32.89019835,1250.2,1250.1,12.05514951]
[1672911150313,16.89212835,1250.2,1250.1,12.05514951]
[1672911153405,32.88929835,1250.2,1250.1,12.05514951]
[1672911153614,24.89057835,1250.2,1250.1,12.05514951]
[1672911153938,21.29409912,1250.2,1250.1,12.05514951]
[1672911154864,21.29409912,1250.2,1250.1,0.066]
[1672911154865,36.98989105,1250.2,1250.1,0.066]
[1672911155075,38.35087225,1250.2,1250.0,14.066]
[1672911155343,4.18671581,1250.1,1250.0,18.05514951]
[1672911155558,32.62466042,1250.1,1250.0,14.066]
[1672911155727,32.69066042,1250.1,1250.0,14.066]
[1672911157814,32.74066042,1250.1,1250.0,14.066]
[1672911158061,32.69066042,1250.1,1250.0,14.066]
[1672911160999,28.50394461,1250.1,1250.0,14.066]
[1672911161677,24.69130042,1250.1,1250.0,14.066]
[1672911162207,20.50458461,1250.1,1250.0,0.066]
[1672911162522,24.69130042,1250.1,1249.9,8.066]
[1672911162738,7.08559013,1250.0,1249.9,12.05514951]
[1672911162948,11.12927319,1250.0,1249.9,26.05514951]
[1672911163094,19.12927319,1250.0,1249.9,26.05514951]
[1672911164100,15.62927319,1250.0,1249.9,26.05514951]
[1672911164460,7.62927319,1250.0,1249.9,26.05514951]
[1672911164832,3.05423101,1250.0,1249.9,42.05642951]
[1672911165005,2.98823101,1250.0,1249.9,26.05514951]
[1672911165217,2.98798569,1250.0,1249.9,26.05514951]
[1672911166831,2.98798569,1250.0,1249.9,42.05642951]
[1672911167156,5.37873947,1250.0,1249.9,26.05514951]
[1672911167304,5.44473947,1250.0,1249.9,30.26083746]
[1672911170949,3.05398569,1250.0,1249.9,30.26083746]
[1672911171168,2.98798569,1250.0,1249.9,30.26083746]
[1672911175753,2.98798569,1250.0,1249.9,26.05514951]
[1672911176149,5.38099777,1250.0,1249.9,34.28578951]
[1672911176354,5.44699777,1250.0,1249.9,34.28578951]
[1672911176565,5.44699777,1250.0,1249.9,42.76498876]
[1672911177423,5.44699777,1250.0,1249.9,50.76562876]
[1672911177633,5.44699777,1250.0,1249.9,56.64226064]
[1672911178474,2.45901208,1250.0,1249.9,56.64226064]
[1672911178679,4.18788103,1250.0,1249.9,56.64226064]
[1672911184502,2.39301208,1250.0,1249.9,56.64226064]
[1672911185129,4.18689488,1250.0,1249.9,56.64226064]
[1672911185339,4.18690993,1250.0,1249.9,56.64226064]
[1672911185699,2.39301208,1250.0,1249.9,56.64226064]
[1672911187028,2.39301208,1250.0,1249.9,48.64226064]
[1672911187433,5.38099777,1250.0,1249.9,40.64162064]
[1672911187626,5.44699777,1250.0,1249.9,40.64162064]
[1672911187977,5.44699777,1250.0,1249.9,24.41034064]
[1672911188190,21.44699777,1250.0,1249.9,26.05514951]
[1672911188401,13.44699777,1250.0,1249.9,26.05514951]
[1672911188570,5.44699777,1250.0,1249.9,26.05514951]
[1672911188786,3.05398569,1250.0,1249.9,26.05514951]
[1672911189042,5.37964996,1250.0,1249.9,26.05514951]
[1672911189236,5.44564996,1250.0,1249.9,26.05514951]
[1672911190465,5.99021496,1250.0,1249.9,26.05514951]
[1672911190714,4.19615513,1250.0,1249.9,26.05514951]
[1672911190953,12.13015513,1250.0,1249.9,18.05514951]
[1672911191116,12.19615513,1250.0,1249.9,18.05514951]
[1672911193823,4.19615513,1250.0,1249.9,18.05514951]
[1672911194029,4.13015513,1250.0,1249.9,18.05514951]
[1672911196574,12.13015513,1250.0,1249.9,18.05514951]
[1672911196781,20.19615513,1250.0,1249.9,18.05514951]
[1672911197413,12.19615513,1250.0,1249.9,18.05514951]
[1672911202374,20.19615513,1250.0,1249.9,18.05514951]
[1672911205173,20.24615513,1250.0,1249.9,18.05514951]
[1672911205480,20.19615513,1250.0,1249.9,18.05514951]
[1672911208215,20.79728081,1250.0,1249.9,18.05514951]
[1672911208591,32.29728081,1250.0,1249.9,0.066]
[1672911208787,32.29728081,1250.0,1249.7,22.14288432]
[1672911209006,3.58440603,1249.8,1249.7,26.13203383]
[1672911209225,27.58824603,1249.8,1249.7,26.13203383]
[1672911209429,30.76967063,1249.8,1249.7,26.12891265]
[1672911210737,27.1852646,1249.8,1249.7,26.12891265]
[1672911211345,30.17123678,1249.8,1249.7,26.12891265]
[1672911211536,14.16867678,1249.8,1249.7,26.12891265]
[1672911214681,22.16995678,1249.8,1249.7,26.12891265]
[1672911220565,14.16867678,1249.8,1249.7,26.12891265]
[1672911224862,11.1827046,1249.8,1249.7,26.12891265]
[1672911226726,14.76711063,1249.8,1249.7,26.12891265]
[1672911227607,34.26967063,1249.8,1249.7,14.13976314]
[1672911227926,34.26967063,1249.8,1249.7,0.066]
[1672911227927,35.47248041,1249.8,1249.7,0.066]
[1672911228156,55.46951999,1249.8,1249.6,0.08243589]